fUSD/lending_fUSD_20240709
["ID","MTS","AMOUNT","RATE_DAILY","PERIOD"]
[331580592,1720542643739,-200.0,0.00013635,2]
[331580593,1720542643748,-2000.0,0.00013635,2]
[331580594,1720542643759,-35281.5438682,0.0001368,2]
[331580595,1720542643768,-290.3254318,0.0001368,2]
[331580596,1720542643777,-1483.2092194,0.00013689,2]
[331580598,1720542643787,-5958.1163143,0.00013689,2]
[331580599,1720542643796,-1000.0,0.00013698,5]
[331580600,1720542643805,-1000.0,0.00013698,5]
[331580601,1720542643815,-166.50275554,0.00013698,2]
[331580602,1720542643823,-200.0,0.00013699,2]
[331580603,1720542643833,-2751.0,0.00013699,2]
[331580604,1720542643842,-250.0,0.00013699,2]
[331580605,1720542643852,-1461.54,0.00013699,2]
[331580606,1720542643861,-2687.7,0.00013699,2]
[331580607,1720542643870,-4598.75,0.00013699,2]
[331580608,1720542643880,-500.0,0.00013699,2]
[331580610,1720542643889,-200.0,0.00013699,2]
[331580612,1720542643899,-19999.99,0.00013699,2]
[331580614,1720542643908,-1389.1,0.00013699,2]
[331580615,1720542643917,-11693.74690876,0.00013736,2]
[331580616,1720542643926,-1000.0,0.00013736,2]
[331580617,1720542643938,-251.0,0.0001375,2]
[331580618,1720542643947,-200.0,0.00013771,2]
[331580619,1720542643956,-27354.7050104,0.00013781,2]
[331580620,1720542643965,-290.3254318,0.00013781,2]
[331580621,1720542643975,-1053.4052617,0.00013781,2]
[331580622,1720542643983,-4231.5750153,0.00013781,2]
[331580623,1720542643993,-371.85909051,0.00013799,2]
[331580624,1720542644001,-371.85909049,0.00013799,2]
[331580625,1720542644013,-371.85909049,0.00013799,2]
[331580626,1720542644022,-619.0,0.0001383,2]
[331580627,1720542644030,-449.0,0.0001383,2]
[331580628,1720542644040,-809.0,0.0001383,2]
[331580629,1720542644050,-444.0,0.0001383,2]
[331580630,1720542644059,-2377.0,0.0001383,2]
[331580631,1720542644068,-1305.0,0.0001383,2]
[331580632,1720542644077,-549.0,0.0001383,2]
[331580633,1720542644087,-1990.0,0.0001383,2]
[331580634,1720542644096,-3276.0,0.0001383,2]
[331580635,1720542644106,-283.0,0.0001383,2]
[331580636,1720542644115,-1071.0,0.0001383,2]
[331580637,1720542644124,-626.23900531,0.00013849,2]
[331580638,1720542644134,-150.0,0.0001386,2]
[331580639,1720542644143,-150.0,0.0001386,2]
[331580640,1720542644152,-153.18864,0.0001386,2]
[331580641,1720542644161,-19427.8661525,0.0001387,2]
[331580642,1720542644170,-290.3254318,0.0001387,2]
[331580643,1720542644179,-623.601304,0.0001387,2]
[331580644,1720542644188,-2505.0337164,0.0001387,2]
[331580645,1720542644197,-218.1,0.00013872,2]
[331580646,1720542644206,-1000.0,0.00013879,2]
[331580647,1720542644215,-1000.0,0.00013879,2]
[331580648,1720542644223,-1000.0,0.00013879,2]
[331580649,1720542644233,-1000.0,0.00013879,2]
[331580650,1720542644242,-1000.0,0.00013879,2]
[331580651,1720542644252,-57689.70510453,0.0001388,2]
[331580652,1720542644266,-371.85909049,0.00013897,2]
[331580653,1720542644276,-246.77971328,0.00013899,2]
[331580654,1720542644286,-406.5808008,0.00013899,2]
[331580655,1720542644296,-194.24643572,0.00013899,2]
[331580656,1720542644306,-499.46768724,0.000139,2]
[331580657,1720542644315,-523.04786748,0.000139,2]
[331580658,1720542644324,-200.0,0.00013909,2]
[331580659,1720542644333,-193.7973463,0.00013972,2]
[331580660,1720542644343,-778.4924175,0.00013972,2]
[331580661,1720542644353,-11501.0272947,0.00013981,2]
[331580662,1720542644362,-3574.1884368,0.00013981,2]
[331580663,1720542644372,-290.3254318,0.00013981,2]
[331580664,1720542644381,-290.3254318,0.00013981,2]
[331580665,1720542644390,-166.70918062,0.00013989,2]
[331580666,1720542644400,-2416.64038706,0.00013997,2]
[331580667,1720542644409,-500.0,0.00013999,2]
[331580668,1720542644419,-254.05941297,0.00013999,2]
[331580669,1720542644428,-1000.0,0.00013999,2]
[331580670,1720542644437,-1000.0,0.00013999,2]
[331580671,1720542644446,-1000.0,0.00013999,2]
[331580672,1720542644455,-1000.0,0.00013999,2]
[331580673,1720542644464,-1000.0,0.00013999,2]
[331580674,1720542644474,-1000.0,0.00013999,2]
[331580675,1720542644483,-1000.0,0.00013999,2]
[331580676,1720542644492,-1000.0,0.00013999,2]
[331580677,1720542644501,-1000.0,0.00013999,2]
[331580678,1720542644512,-1000.0,0.00013999,2]
[331580679,1720542644521,-1000.0,0.00013999,2]
[331580680,1720542644530,-1000.0,0.00013999,2]
[331580681,1720542644539,-1000.0,0.00013999,2]
[331580682,1720542644548,-1000.0,0.00013999,2]
[331580683,1720542644557,-197.6193422,0.00013999,2]
[331580684,1720542644566,-276.34359382,0.00013999,2]
[331580685,1720542644575,-954255.56230999,0.00014,2]
[331580686,1720542644592,-34484.99303155,0.00014,2]
[331580687,1720542644602,-18727.74608,0.00014,2]
[331580688,1720542644614,-29072.25392,0.00014,2]
[331580689,1720542644624,-5518.32818564,0.00014,2]
[331580690,1720542646264,-150773.29157695,0.00014,2]
[331580691,1720542646274,-98198.58579025,0.00014,2]
[331580692,1720542646291,-21461.22597734,0.00014,2]
[331580693,1720542646303,-500.66726163,0.00014,2]
[331580773,1720542648848,-924.029418,0.0001159,2]
[331580774,1720542648858,-168.14640675,0.00013543,2]
[331580775,1720542648867,-3818.986,0.0001355,2]
[331580776,1720542648877,-38253.12492795,0.00014,2]
[331580777,1720542648897,-955.08487786,0.00014,2]
[331580778,1720542648913,-1544.6,0.00014,2]
[331580779,1720542726245,3146.6643,0.0001116,2]
[331580780,1720542835908,521.94638143,9e-05,2]
[331580781,1720542852752,3584.86523324,0.00011,2]
[331580782,1720542890218,1003.05735552,0.00011199,2]
[331580784,1720542987453,3022.81708204,0.00011199,2]
[331580786,1720542999114,18227.5234383,0.0001,2]
[331580787,1720543017515,118594.62337053,0.00011199,2]
[331580788,1720543050379,2432.50735589,0.00011199,2]
[331580789,1720543080162,203.92024674,0.00011199,2]
[331580790,1720543216537,1742.85611798,0.00011199,2]
[331580791,1720543217511,2618.82121878,0.00011199,2]
[331580792,1720543218908,3074.42673232,0.00011199,2]
[331580793,1720543253770,1169.048298,0.00011199,2]
[331580794,1720543257321,489.58,0.00010616,2]
[331580795,1720543268429,946.68077921,0.00011199,2]
[331580796,1720543294841,978.16242731,0.00011199,2]
[331580797,1720543298879,1131.53749588,0.00011199,2]
[331580798,1720543299212,1069.67493178,0.00011199,2]
[331580799,1720543305579,1054.88934928,0.00011199,2]
[331580801,1720543324050,1019.95118513,0.00011199,2]
[331580804,1720543353180,300.51199197,0.00011199,2]
[331580807,1720543396642,10905.90770126,0.00011199,2]
[331580808,1720543404136,520.06850352,0.00011199,2]
[331580815,1720543447500,174.58594608,0.00011199,2]
[331580816,1720543453537,155.0,0.00011199,2]
[331580819,1720543495140,860.17499323,0.00011199,2]
[331580820,1720543508441,6756.3942821,0.00011199,2]
[331580822,1720543521872,651.60629957,0.00011199,2]
[331580824,1720543531047,380.58928978,0.00011199,2]
[331580826,1720543545416,254.25713924,0.00011199,2]
[331580828,1720543562771,194.02066443,0.00011199,2]
[331580833,1720543596156,626.23900531,0.00011199,2]
[331580834,1720543614395,1339.30572238,0.00011199,2]
[331580837,1720543653036,163.84671005,0.00011199,2]
[331580840,1720543698869,193.71936803,0.00011199,2]
[331580842,1720543737149,518.63271752,0.00011199,2]
[331580843,1720543748431,366.32433738,0.00011199,2]
[331580844,1720543757421,1048.92984428,0.00011199,2]
[331580846,1720543788424,155.0,0.00011199,2]
[331580847,1720543793506,155.0,0.00011199,2]
[331580849,1720543813338,534.19365946,0.00011199,2]
[331580850,1720543814478,496.65211333,0.00011199,2]
[331580871,1720543831510,-500.0,0.0001126,2]
[331580872,1720543831520,-220.0,0.00011799,2]
[331580873,1720543831529,-300.0,0.00011799,2]
[331580874,1720543831539,-193.93749004,0.000118,2]
[331580875,1720543831551,-334.61,0.000118,2]
[331580876,1720543831567,-11360.65198285,0.000118,2]
[331580877,1720543831578,-4020.05519747,0.000118,2]
[331580878,1720543831676,-4667.47387818,0.000118,2]
[331580879,1720543831687,-258.60629429,0.000118,2]
[331580880,1720543831734,-521.124372,0.000118,2]
[331580914,1720543837609,-644.47142518,0.000118,2]
[331580915,1720543837621,-6761.68653056,0.000118,2]
[331580916,1720543837728,-100.15984254,0.000118,2]
[331580917,1720543837739,-150.0,0.0001186,2]
[331580918,1720543837749,-250.0,0.00011865,2]
[331580919,1720543837761,-20.09686403,0.00011873,2]
[331581101,1720543840255,-143.47313597,0.00011873,2]
[331581103,1720543840266,-1855.14,0.00011874,2]
[331581106,1720543840275,-11182.96,0.00011874,2]
[331581108,1720543840285,-327.0,0.0001194,2]
[331581110,1720543840294,-327.0,0.0001205,2]
[331581112,1720543840304,-327.0,0.0001216,2]
[331581114,1720543840313,-150.0,0.00012219,2]
[331581115,1720543840323,-150.99,0.00012219,2]
[331581117,1720543840332,-327.0,0.0001226,2]
[331581120,1720543840342,-1398.95077001,0.00012302,2]
[331581122,1720543840351,-403.4503373,0.00012314,2]
[331581123,1720543840361,-202.25757491,0.00012314,2]
[331581125,1720543840370,-327.0,0.0001237,2]
[331581128,1720543840379,-150.0,0.00012479,2]
[331581129,1720543840388,-327.0,0.0001248,2]
[331581131,1720543840398,-1955.44,0.0001248,2]
[331581133,1720543840407,-1346.81,0.00012488,2]
[331581135,1720543840416,-1000.0,0.00012527,2]
[331581138,1720543840426,-210.45,0.00012539,2]
[331581140,1720543840435,-327.0,0.0001259,2]
[331581142,1720543840446,-207.42,0.00012597,2]
[331581143,1720543840455,-150.0,0.000126,2]
[331581145,1720543840465,-327.0,0.000127,2]
[331581147,1720543840475,-225.77,0.00012744,2]
[331581149,1720543840484,-327.0,0.0001281,2]
[331581152,1720543840494,-489.58,0.0001288,2]
[331581153,1720543840503,-500.0,0.00012904,2]
[331581156,1720543840515,-327.0,0.0001291,2]
[331581158,1720543840524,-420.0,0.00012955,2]
[331581159,1720543840535,-600.30000237,0.00013,2]
[331581162,1720543840546,-327.0,0.0001302,2]
[331581164,1720543840555,-3077.33409396,0.0001305,2]
[331581165,1720543840565,-604.78351958,0.00013128,2]
[331581168,1720543840575,-486.61414226,0.00013128,2]
[331581170,1720543840584,-366.58364766,0.00013128,2]
[331581171,1720543840593,-346.55980804,0.00013128,2]
[331581174,1720543840603,-196.43586911,0.00013128,2]
[331581175,1720543840612,-217.90047204,0.00013128,2]
[331581177,1720543840621,-327.0,0.0001313,2]
[331581180,1720543840631,-327.0,0.0001324,2]
[331581181,1720543840639,-207.42,0.00013254,2]
[331581183,1720543840649,-905.14,0.00013278,2]
[331581186,1720543840658,-150.0,0.000133,2]
[331581188,1720543840668,-327.0,0.0001335,2]
[331581189,1720543840677,-168.14640675,0.00013443,2]
[331581192,1720543840686,-327.0,0.0001346,2]
[331581193,1720543840695,-441.17998074,0.00013472,2]
[331581195,1720543840705,-195.95419342,0.00013472,2]
[331581197,1720543840715,-4954865.1,0.000135,2]
[331581199,1720543840725,-774.92376784,0.00013516,2]
[331581202,1720543840734,-155.0,0.00013543,2]
[331581203,1720543840743,-193.49618579,0.00013543,2]
[331581205,1720543840752,-168.14640675,0.00013557,2]
[331581207,1720543840762,-327.0,0.0001357,2]
[331581209,1720543840771,-155.7163574,0.00013574,2]
[331581211,1720543840781,-366.32433738,0.00013574,2]
[331581212,1720543840790,-1432.8260166,0.00013574,2]
[331581213,1720543840803,-155.26295347,0.00013574,2]
[331581214,1720543840813,-327.0,0.0001367,2]
[331581215,1720543840822,-168.14640675,0.00013672,2]
[331581217,1720543840832,-527.84158908,0.00013698,2]
[331581219,1720543840841,-200.0,0.00013699,2]
[331581221,1720543840851,-1343.85,0.00013699,2]
[331581223,1720543840860,-250.0,0.00013699,2]
[331581225,1720543840870,-1500.0,0.0001372,2]
[331581227,1720543840880,-1500.0,0.00013726,2]
[331581229,1720543840889,-300.0,0.00013728,2]
[331581231,1720543840898,-1500.0,0.0001374,2]
[331581233,1720543840908,-254.0,0.0001375,2]
[331581235,1720543840918,-1500.0,0.00013754,2]
[331581237,1720543840928,-300.0,0.00013754,2]
[331581239,1720543840937,-528.85282997,0.00013759,2]
[331581241,1720543840947,-327.0,0.0001378,2]
[331581243,1720543840957,-168.14640675,0.00013786,2]
[331581245,1720543840966,-223.11545433,0.00013799,2]
[331581247,1720543840975,-223.11545429,0.00013799,2]
[331581249,1720543840984,-223.11545429,0.00013799,2]
[331581251,1720543840993,-223.11545429,0.00013799,2]
[331581253,1720543841003,-223.11545429,0.00013799,2]
[331581255,1720543841013,-223.11545429,0.00013799,2]
[331581257,1720543841022,-223.11545429,0.00013799,2]
[331581259,1720543841031,-223.11545429,0.00013799,2]
[331581261,1720543841040,-5124.65784973,0.000138,2]
[331581263,1720543841049,-1500.0,0.00013806,2]
[331581265,1720543841058,-1500.0,0.00013808,2]
[331581267,1720543841067,-1500.0,0.0001381,2]
[331581269,1720543841076,-5124.65784966,0.00013811,2]
[331581271,1720543841085,-1500.0,0.00013813,2]
[331581273,1720543841095,-5124.65784966,0.00013822,2]
[331581275,1720543841104,-1500.0,0.00013826,2]
[331581277,1720543841113,-361.0,0.0001383,2]
[331581279,1720543841122,-1251.0,0.0001383,2]
[331581281,1720543841132,-1659.0,0.0001383,2]
[331581283,1720543841141,-1830.0,0.0001383,2]
[331581285,1720543841150,-2377.0,0.0001383,2]
[331581287,1720543841159,-1304.0,0.0001383,2]
[331581288,1720543841169,-1990.0,0.0001383,2]
[331581290,1720543841178,-3276.0,0.0001383,2]
[331581291,1720543841187,-549.0,0.0001383,2]
[331581293,1720543841196,-283.0,0.0001383,2]
[331581294,1720543841205,-152.0,0.0001383,2]
[331581296,1720543841214,-1199.0,0.0001383,2]
[331581297,1720543841223,-209.076,0.0001383,2]
[331581299,1720543841232,-151.299,0.0001383,2]
[331581300,1720543841241,-152.0,0.0001383,2]
[331581302,1720543841251,-154.668,0.0001383,2]
[331581303,1720543841261,-1500.0,0.00013831,2]
[331581305,1720543841270,-5124.65784966,0.00013833,2]
[331581306,1720543841279,-5124.65784966,0.00013844,2]
[331581308,1720543841289,-223.11545429,0.00013846,2]
[331581309,1720543841298,-163.57,0.00013852,2]
[331581311,1720543841307,-1500.0,0.00013852,2]
[331581313,1720543841316,-5124.65784966,0.00013856,2]
[331581314,1720543841326,-1500.0,0.00013856,2]
[331581316,1720543841335,-433.74247895,0.00013858,2]
[331581317,1720543841344,-641.1693,0.0001386,2]
[331581319,1720543841354,-1500.0,0.00013865,2]
[331581320,1720543841364,-5124.65784966,0.00013867,2]
[331581322,1720543841373,-300.0,0.0001387,2]
[331581324,1720543841382,-5124.65784966,0.00013878,2]
[331581325,1720543841392,-300.0,0.00013878,2]
[331581327,1720543841401,-500.0,0.00013887,2]
[331581328,1720543841410,-500.0,0.00013888,2]
[331581330,1720543841419,-500.0,0.00013888,2]
[331581331,1720543841429,-500.0,0.00013888,2]
[331581333,1720543841437,-200.0,0.00013888,2]
[331581335,1720543841446,-5124.65784966,0.00013889,2]
[331581336,1720543841455,-327.0,0.0001389,2]
[331581338,1720543841464,-300.0,0.00013899,2]
[331581340,1720543841473,-222.8249572,0.00013899,2]
[331581341,1720543841482,-436.43793814,0.00013899,2]
[331581343,1720543841492,-276.34359382,0.00013899,2]
[331581345,1720543841502,-276.34359382,0.00013899,2]
[331581346,1720543841511,-250000.0,0.000139,2]
[331581348,1720543841520,-5124.65784966,0.000139,2]
[331581349,1720543841530,-223.11545429,0.000139,2]
[331581351,1720543841539,-168.14640675,0.000139,2]
[331581353,1720543841548,-300.0,0.00013904,2]
[331581354,1720543841557,-1500.0,0.00013917,2]
[331581356,1720543841566,-1500.0,0.0001392,2]
[331581358,1720543841575,-1500.0,0.00013925,2]
[331581359,1720543841585,-1500.0,0.00013927,2]
[331581361,1720543841594,-300.0,0.00013955,2]
[331581363,1720543841603,-2000.0,0.00013973,3]
[331581364,1720543841613,-281979.69300904,0.0001398,2]
[331581366,1720543841622,-304.34682513,0.00013987,2]
[331581367,1720543841631,-3203.4485934,0.0001399,2]
[331581369,1720543841640,-2450.3888961,0.0001399,2]
[331581371,1720543841649,-1697.3291988,0.0001399,2]
[331581372,1720543841658,-944.2695015,0.0001399,2]
[331581374,1720543841668,-191.2098041,0.0001399,2]
[331581376,1720543841677,-327.0,0.0001399,2]
[331581377,1720543841686,-940.0,0.00014,2]
[331581379,1720543841695,-445580.35252909,0.00014,2]
[331581382,1720543841724,-884.16644664,0.00014,2]
[331581384,1720543841735,-3455.39202086,0.00014,2]
[331581385,1720543841750,-4620.65287364,0.00014,2]
[331581386,1720543841768,-1537.79215374,0.00014,2]
[331581436,1720543842582,-321.56500655,0.00013416,2]
[331581437,1720543842592,-291.533251,0.00014,2]
[331581438,1720543842603,-371.88983172,0.00014,2]
[331581439,1720543842616,-851.90336111,0.00014,2]
[331581440,1720543842628,-10702.70300256,0.00014,2]
[331581441,1720543843002,-728.1217066,0.00014,2]
[331581442,1720543843014,-16028.95391769,0.00014,2]
[331581443,1720543843029,-12320.28412043,0.00014,2]
[331581452,1720543844280,-419.87653924,0.00014,2]
[331581453,1720543844292,-697.39124285,0.00014,2]
[331581469,1720543845624,-1675.01683556,0.00014,2]
[331581470,1720543845683,-3340.70768241,0.00014,2]
[331581471,1720543845798,-620.1702649,0.00014,2]
[331581472,1720543845809,-682.25642715,0.00014,2]
[331581473,1720543845858,-377.32309539,0.00014,2]
[331581474,1720543845869,-791.028,0.00014,2]
[331581475,1720543845881,-547.84176427,0.00014,2]
[331581476,1720543845918,-3385.86256862,0.00014,2]
[331581477,1720543845936,-42814.15087304,0.00014,2]
[331581478,1720543845949,-831.51467711,0.00014,2]
[331581479,1720543845966,-337.08969517,0.00014,2]
[331581510,1720543995685,247.00843922,0.00011199,2]
[331581548,1720544114818,279.93384453,0.00011199,2]
[331581569,1720544217528,24728.49438693,0.00011199,2]
[331581570,1720544221027,155.0,0.00011199,2]
[331581588,1720544284590,156.45548788,0.00011199,2]
[331581603,1720544330853,-614.74212518,0.0001126,2]
[331581604,1720544330877,-425.1123,0.000117,2]
[331581617,1720544379656,195.18,0.00010959,2]
[331581623,1720544397724,504.22,9.889e-05,2]
[331581634,1720544438388,155.8,0.00011799,2]
[331581641,1720544460260,220.50420304,9.889e-05,2]
[331581648,1720544493624,436.43793814,0.00011199,2]
[331581650,1720544500605,159.81206704,0.00011199,2]
[331581652,1720544509552,250.0,0.00011777,2]
[331581655,1720544526424,721.36501093,0.00011199,2]
[331581658,1720544539379,6316.82635567,0.00011199,2]
[331581659,1720544539404,10000.0,0.00011199,2]
[331581660,1720544539430,10000.0,0.00011199,2]
[331581661,1720544539453,1729.13034594,0.00011199,2]
[331581666,1720544576494,8270.86965406,0.00011199,2]
[331581667,1720544576517,10000.0,0.00011199,2]
[331581668,1720544576539,1364.80032623,0.00011199,2]
[331581670,1720544580564,8635.19967377,0.00011199,2]
[331581671,1720544580586,10000.0,0.00011199,2]
[331581672,1720544580608,10000.0,0.00011199,2]
[331581673,1720544580630,6968.16458525,0.00011199,2]
[331581675,1720544585161,783.99,0.00010959,2]
[331581686,1720544670386,23079.7879137,0.00011199,2]
[331581697,1720544724574,150.0,0.00011616,2]
[331581700,1720544740698,3662.47,0.00011613,2]
[331581701,1720544741417,180.61,0.0001162,2]
[331581702,1720544744158,1537.28,0.00011624,2]
[331581709,1720544774791,15376.78099222,0.00011199,2]
[331581713,1720544790360,932.23102873,0.00011199,2]
[331581717,1720544811340,3027.57638009,0.00011199,2]
[331581722,1720544821050,2936.3715267,0.00011199,2]
[331581723,1720544821075,174.70849652,0.00011199,2]
[331581727,1720544837853,2073.13691823,0.00011199,2]
[331581728,1720544837876,665.00795613,0.00011199,2]
[331581730,1720544849298,394.57,0.00011633,2]
[331581732,1720544851246,613.02560445,0.00011199,2]
[331581735,1720544863623,3251.98740574,0.00011199,2]
[331581738,1720544871520,5075.40903368,0.00011199,2]
[331581739,1720544871544,444.271135,0.00011199,2]
[331581740,1720544875462,3768.61597897,0.00011199,2]
[331581743,1720544888602,5787.11288603,0.00011199,2]
[331581744,1720544888626,1969.23443044,0.00011199,2]
[331581747,1720544899919,499.80686348,0.00011199,2]
[331581750,1720544920152,634.0,9.756e-05,2]
[331581754,1720544941281,200.0,0.00011676,2]
[331581758,1720544960439,250.0,0.00011655,2]
[331581766,1720544995789,407.47074942,0.00011199,2]
[331581772,1720545030420,155.0,0.00011199,2]
[331581778,1720545031697,-289.0,0.0001188,2]
[331581779,1720545031707,-154.63,0.00011881,2]
[331581780,1720545031718,-1000.0,0.00011957,2]
[331581781,1720545031727,-154.63,0.00011959,2]
[331581782,1720545031737,-164.27,0.0001198,2]
[331581783,1720545031747,-289.0,0.0001199,2]
[331581784,1720545031758,-634.0,0.0001202,2]
[331581785,1720545031768,-299.99,0.00012023,2]
[331581786,1720545031777,-154.63,0.00012036,2]
[331581787,1720545031787,-499.99,0.00012036,2]
[331581788,1720545031797,-289.0,0.0001211,2]
[331581789,1720545031808,-154.63,0.00012113,2]
[331581790,1720545031818,-154.63,0.00012191,2]
[331581791,1720545031827,-289.0,0.0001222,2]
[331581792,1720545031838,-187.09,0.00012256,2]
[331581793,1720545031848,-154.63,0.00012268,2]
[331581794,1720545031859,-308.48390406,0.00012302,2]
[331581795,1720545031869,-289.0,0.0001233,2]
[331581796,1720545031879,-154.63,0.00012346,2]
[331581797,1720545031889,-154.63,0.00012423,2]
[331581798,1720545031898,-289.0,0.0001244,2]
[331581799,1720545031908,-154.63,0.000125,2]
[331581800,1720545031918,-289.0,0.0001255,2]
[331581801,1720545031929,-150.0,0.000126,2]
[331581802,1720545031939,-289.0,0.0001266,2]
[331581803,1720545031948,-289.0,0.0001277,2]
[331581804,1720545031959,-289.0,0.0001289,2]
[331581805,1720545031969,-289.0,0.00013,2]
[331581806,1720545031979,-329.85,0.00013063,2]
[331581808,1720545031989,-180.61,0.00013072,2]
[331581810,1720545031999,-289.0,0.0001311,2]
[331581812,1720545032008,-156.06045591,0.00013128,2]
[331581814,1720545032019,-276.54348187,0.00013128,2]
[331581815,1720545032030,-163.92127245,0.00013128,2]
[331581816,1720545032039,-269.8232753,0.00013128,2]
[331581817,1720545032051,-1904.51355182,0.00013128,2]
[331581818,1720545032066,-155.0,0.00013128,2]
[331581819,1720545032076,-155.22310351,0.00013128,2]
[331581820,1720545032086,-155.26840283,0.00013128,2]
[331581821,1720545032097,-289.0,0.0001322,2]
[331581822,1720545032106,-600.315,0.0001329,2]
[331581823,1720545032116,-4527.0996,0.000133,2]
[331581824,1720545032126,-165.4198,0.000133,2]
[331581825,1720545032138,-3061.2239,0.000133,2]
[331581826,1720545032148,-1976.53,0.000133,2]
[331581827,1720545032159,-28903.8795,0.000133,2]
[331581828,1720545032169,-289.0,0.0001333,2]
[331581829,1720545032179,-1251.2596,0.000134,2]
[331581830,1720545032189,-217521.8038,0.000134,2]
[331581831,1720545032200,-5191.2482,0.000134,2]
[331581832,1720545032210,-156.51336,0.00013411,2]
[331581833,1720545032219,-3801.282592,0.00013411,2]
[331581834,1720545032230,-289.0,0.0001344,2]
[331581835,1720545032240,-1000.0,0.00013452,2]
[331581836,1720545032250,-155.0,0.00013472,2]
[331581837,1720545032261,-346.43618517,0.00013472,2]
[331581838,1720545032271,-155.20374793,0.00013472,2]
[331581839,1720545032281,-155.29862192,0.00013472,2]
[331581840,1720545032293,-155.33944343,0.00013472,2]
[331581841,1720545032303,-158.64365863,0.00013472,2]
[331581842,1720545032314,-235.94587051,0.00013472,2]
[331581843,1720545032324,-439.52111545,0.00013472,2]
[331581844,1720545032335,-2899.60114748,0.00013472,2]
[331581845,1720545032346,-206.36050428,0.00013472,2]
[331581846,1720545032356,-155.29460536,0.00013472,2]
[331581847,1720545032365,-520.08653154,0.00013472,2]
[331581848,1720545032375,-155.06185702,0.00013472,2]
[331581849,1720545032386,-155.0,0.00013472,2]
[331581850,1720545032397,-1342.22856252,0.00013472,2]
[331581851,1720545032407,-400.0,0.00013472,2]
[331581852,1720545032418,-719.24293592,0.00013472,2]
[331581853,1720545032427,-367.25582466,0.00013472,2]
[331581854,1720545032437,-547.24050391,0.00013472,2]
[331581855,1720545032447,-530.62911332,0.00013472,2]
[331581856,1720545032457,-183.85785098,0.00013472,2]
[331581857,1720545032466,-661.54354703,0.00013516,2]
[331581858,1720545032480,-155.31483576,0.00013516,2]
[331581859,1720545032490,-155.24332289,0.00013516,2]
[331581860,1720545032499,-159.30941425,0.00013516,2]
[331581861,1720545032510,-155.0,0.00013516,2]
[331581862,1720545032519,-242.40389105,0.00013516,2]
[331581863,1720545032529,-319.5989622,0.00013516,2]
[331581864,1720545032539,-155.58854574,0.00013516,2]
[331581865,1720545032549,-156.05006612,0.00013516,2]
[331581866,1720545032560,-178.50327553,0.00013516,2]
[331581867,1720545032570,-155.17112391,0.00013543,2]
[331581868,1720545032581,-155.0,0.00013543,2]
[331581869,1720545032591,-377.31017061,0.00013543,2]
[331581870,1720545032600,-289.0,0.0001355,2]
[331581871,1720545032610,-1547.97912297,0.00013574,2]
[331581872,1720545032620,-156.51336,0.00013579,2]
[331581873,1720545032630,-3801.282592,0.00013579,2]
[331581874,1720545032640,-2373.0,0.0001363,2]
[331581875,1720545032649,-1304.0,0.0001363,2]
[331581876,1720545032659,-3198.0,0.0001363,2]
[331581877,1720545032670,-644.313,0.0001363,2]
[331581878,1720545032681,-521.142,0.0001363,2]
[331581879,1720545032691,-289.0,0.0001367,2]
[331581880,1720545032700,-768.07,0.00013699,2]
[331581881,1720545032710,-671.92,0.00013699,2]
[331581882,1720545032720,-250.0,0.00013699,2]
[331581883,1720545032730,-200.0,0.00013699,2]
[331581884,1720545032739,-2202.75526706,0.00013736,2]
[331581885,1720545032749,-156.51336,0.00013746,2]
[331581886,1720545032758,-3801.282592,0.00013746,2]
[331581887,1720545032768,-289.0,0.0001378,2]